{"text_format":"1","workbook":"xlsx","n_sheets":2,"sheets":["Свод по объектам","Паспорт объекта"],"not_rendered":{"charts":0,"images":0,"macros":0,"external_links":0,"defined_names":1,"comments":1,"pivot_tables":0},"unopened":[],"bounds":{"document_bytes":16777216,"sheet_cells":100000,"rows_first":2000,"rows_last":500,"rows_between":2000,"halvings":0,"cell_chars":16384,"cell_head_chars":4096},"cells_cut":0,"cells_raw":0,"read":"whole","date_system":"1900"}

{"sheet":"Свод по объектам","index":0,"n_rows":19,"n_cols":27,"rows_kept":19,"cut":false,"hidden":false,"merged":[]}
["№№","Территориальный признак ","ШИФР","Район","Адрес объекта","Адрес объекта ( с привязкой к домам)","Статус (построено, на стадии ввода, в эксплуатации)","Год заключения  договора","Номер договора аренды","Арендная плата в месяц (без учета НДС 20%), руб.","Арендодатель","Основание права собственности у Арендодателя","Срок действия договора (период аренды),                 * - автопролонгация","Принадлежность объектов ВКХ  (ВО, ВС)","Наименование объекта","Наименование объекта в соответствии с выпиской из ЕГРН","Технические параметры (протяженность трассы, площадь и тп.","Ед. изм.","Кадастровый номер ","Кадастровая стоимость, руб.","Первоначальная стоимость /балансовая стоимость согласно договора купли-продажи (без НДС 20%), руб.","Максимальный срок полезного использования","Амортизационная группа","Амортизация в год, руб.","Наличие / отсутствие рабочей документации","Проектная нагрузка потребителей, м3/сут","Фактически присоединенная нагрузка, м3/сут"]
[1,"Московская область","Бутово","Ленинский район","д. Бутово",null,"в эксплуатации","2018","123456/18 от 13.06.2018",5,"ООО \"Ромашка\"",null,"13.06.2018 - 12.05.2019*","ВО","Напорный коллектор бытовой канализации ",{"$f":"O2","v":"Напорный коллектор бытовой канализации "},736,"п.м.","50:21:0000000:_____"]
[2,"Московская область","Новодрожжино","Ленинский район","пос. Новодрожжино",null,"в эксплуатации","2018","123456/18 от 13.06.2018",10,"ООО \"Ромашка\"",null,"13.06.2018 - 12.05.2019*","ВО","Канализационно-насосная станция (КНС)","Канализационно-насосная станция (КНС)",15000,"м3/сут.","50:21:0090106:_______"]
[3,"Московская область","Дрожжино","Ленинский район","д. Дрожжино",null,"в эксплуатации","2018","123456/18 от 13.06.2018",15,"ООО \"Ромашка\"",null,"13.06.2018 - 12.05.2019*","ВО","Сети хозяйственно-бытовой канализации ","Сети хозяйственно-бытовой канализации ",3799,"п.м.","50:21:0090106:_____"]
[4,"Московская область","Боброво","Ленинский район","д. Боброво",null,"в эксплуатации","2020","123456789/20 от 06.04.2020 г.",20,"ООО \"Ромашка\"",null," 06.04.2020 - 05.03.2021*","ВО","Сети хозяйственно-бытовой канализации ","Сети хозяйственно-бытовой канализации ",213,"п.м.","50:21:0090212:____"]
[5,"Московская область","Путилково","Красногорский район","д. Путилково",null,"в эксплуатации","2018","123456/18 от 13.06.2018",25,"ООО \"Ромашка\"",null,"13.06.2018 - 12.05.2019*","ВО","Напорный коллектор бытовой канализации ","Напорный коллектор бытовой канализации ",1150,"п.м.","50:11:0020408:____"]
[6,"Москва","Солнцево-парк","Москва","Москва",null,"в эксплуатации","2018","1234567890/18 от 08.06.2018",30,"ООО \"Ромашка\"",null,"08.06.2018 - 07.05.2019*","ВС","Сети водоснабжения","Сети водоснабжения",2401,"п.м.","77:17:0000000:______"]
[7,"Московская область","Бутово","Ленинский район","д. Бутово",null,"в эксплуатации","2018","1234567/18 от 14.06.2018",6,"ООО \"Ромашка\"",null,"14.06.2018 - 13.05.2019*","ВО","Напорный коллектор бытовой канализации ","Напорный коллектор бытовой канализации ",840,"п.м.","51:22:0000000:_____"]
[8,"Московская область","Новодрожжино","Ленинский район","пос. Новодрожжино",null,"в эксплуатации","2018","1234567/18 от 14.06.2018",11,"ООО \"Ромашка\"",null,"14.06.2018 - 13.05.2019*","ВО","Канализационно-насосная станция (КНС)","Канализационно-насосная станция (КНС)",20000,"м3/сут.","51:22:0090107:_______"]
[9,"Московская область","Дрожжино","Ленинский район","д. Дрожжино",null,"в эксплуатации","2018","1234567/18 от 14.06.2018",16,"ООО \"Ромашка\"",null,"14.06.2018 - 13.05.2019*","ВО","Сети хозяйственно-бытовой канализации ","Сети хозяйственно-бытовой канализации ",3900,"п.м.","50:21:0090107:_____"]
[10,"Московская область","Боброво","Ленинский район","д. Боброво",null,"в эксплуатации","2020","1234567890/20 от 07.04.2020 г.",21,"ООО \"Ромашка\"",null," 07.04.2020 - 06.03.2021*","ВО","Сети хозяйственно-бытовой канализации ","Сети хозяйственно-бытовой канализации ",315,"п.м.","50:21:0090213:____"]
[11,"Московская область","Путилково","Красногорский район","д. Путилково",null,"в эксплуатации","2018","1234567/18 от 14.06.2018",26,"ООО \"Ромашка\"",null,"14.06.2018 - 13.05.2019*","ВО","Напорный коллектор бытовой канализации ","Напорный коллектор бытовой канализации ",2200,"п.м.","50:11:0020409:____"]
[12,"Москва","Солнцево-парк","Москва","Москва",null,"в эксплуатации","2018","12345678901/18 от 09.06.2018",31,"ООО \"Ромашка\"",null,"09.06.2018 - 08.05.2019*","ВС","Сети водоснабжения","Сети водоснабжения",3500,"п.м.","77:18:0000000:______"]
[13,"Московская область","Новодрожжино","Ленинский район","пос. Новодрожжино",null,"в эксплуатации","2018","12345678/18 от 15.06.2018",22,"ООО \"Ромашка\"",null,"15.06.2018 - 14.05.2019*","ВО","Канализационно-насосная станция (КНС)","Канализационно-насосная станция (КНС)",25000,"м3/сут.","51:22:0090108:_______"]
[14,"Московская область","Путилково","Красногорский район","д. Путилково",null,"в эксплуатации","2018","123456/2/18 от 14.06.2018",37,"ООО \"Ромашка\"",null,"14.06.2018 - 12.05.2019*","ВО","Напорный коллектор бытовой канализации ","Напорный коллектор бытовой канализации ",2270,"п.м.","50:11:0020409:____"]
[15,"Московская область","Путилково","Красногорский район","д. Путилково",null,"в эксплуатации","2018","123456/3/18 от 14.06.2018",40,"ООО \"Ромашка\"",null,"14.06.2018 - 12.05.2019*","ВО","Напорный коллектор бытовой канализации ","Напорный коллектор бытовой канализации ",3569,"п.м.","50:11:0020410:____"]
[16,"Москва","Солнцево-парк","Москва","Москва",null,"в эксплуатации","2018","12345678901/2/18 от 10.06.2018",33,"ООО \"Ромашка\"",null,"10.06.2018 - 08.05.2019*","ВО","Сети хозяйственно-бытовой канализации ",{"$f":"O17","v":"Сети хозяйственно-бытовой канализации "},3890,"п.м.","77:19:0000000:______"]
[17,"Москва","Солнцево-парк","Москва","Москва",null,"в эксплуатации","2018","12345678901/3/18 от 10.06.2018",38,"ООО \"Ромашка\"",null,"10.06.2018 - 08.05.2019*","ВС","Сети водоснабжения","Сети водоснабжения",4250,"п.м.","77:20:0000000:______"]
[18,"Москва","Солнцево-парк","Москва","Москва",null,"в эксплуатации","2018","12345678901/4/18 от 10.06.2018",46,"ООО \"Ромашка\"",null,"10.06.2018 - 08.05.2019*","ВО","Сети хозяйственно-бытовой канализации ","Сети хозяйственно-бытовой канализации ",1280,"п.м.","77:21:0000000:______"]

{"sheet":"Паспорт объекта","index":1,"n_rows":16,"n_cols":8,"rows_kept":16,"cut":false,"hidden":false,"merged":[]}
[]
[null,null,"Наименование объекта","Солнцево-парк"]
[null,null,"Вид деятельности"]
[null,"Сведения об арендуемых объектах"]
[null,"Реквизиты договора (номер, дата)","С кем заключен договор","Срок действия договора","Кадастровый номер","Наименование объекта (в соответствии с правоустанавливающим документом)","Основные технические характеристики объекта (мощность, протяженность)","Ед. изм."]
[null,{"$f":"'Свод по объектам'!I2","v":"123456/18 от 13.06.2018"},{"$f":"'Свод по объектам'!K2","v":"ООО \"Ромашка\""},{"$f":"'Свод по объектам'!M2","v":"13.06.2018 - 12.05.2019*"},{"$f":"'Свод по объектам'!S2","v":"50:21:0000000:_____"},{"$f":"'Свод по объектам'!P2","v":"Напорный коллектор бытовой канализации "},{"$f":"'Свод по объектам'!Q2","v":736},{"$f":"'Свод по объектам'!R2","v":"п.м."}]
[null,{"$f":"'Свод по объектам'!I8","v":"1234567/18 от 14.06.2018"},{"$f":"'Свод по объектам'!K8","v":"ООО \"Ромашка\""},{"$f":"'Свод по объектам'!M8","v":"14.06.2018 - 13.05.2019*"},{"$f":"'Свод по объектам'!S8","v":"51:22:0000000:_____"},{"$f":"'Свод по объектам'!P8","v":"Напорный коллектор бытовой канализации "},{"$f":"'Свод по объектам'!Q8","v":840},{"$f":"'Свод по объектам'!R8","v":"п.м."}]
[]
[]
[]
[]
[null,{"$f":"IFERROR(INDEX('Свод по объектам'!$C$2:$AA$20,_xlfn.AGGREGATE(15,6,ROW('Свод по объектам'!$B$2:$B$20)/('Свод по объектам'!$C$2:$C$20=$D$2)-1,ROW(A1)),7),\"\")","v":"1234567890/18 от 08.06.2018"},{"$f":"IFERROR(INDEX('Свод по объектам'!$C$2:$AA$20,_xlfn.AGGREGATE(15,6,ROW('Свод по объектам'!$B$2:$B$20)/('Свод по объектам'!$C$2:$C$20=$D$2)-1,ROW(B1)),9),\"\")","v":"ООО \"Ромашка\""},{"$f":"IFERROR(INDEX('Свод по объектам'!$C$2:$AA$20,_xlfn.AGGREGATE(15,6,ROW('Свод по объектам'!$B$2:$B$20)/('Свод по объектам'!$C$2:$C$20=$D$2)-1,ROW(C1)),11),\"\")","v":"08.06.2018 - 07.05.2019*"},{"$f":"IFERROR(INDEX('Свод по объектам'!$C$2:$AA$20,_xlfn.AGGREGATE(15,6,ROW('Свод по объектам'!$B$2:$B$20)/('Свод по объектам'!$C$2:$C$20=$D$2)-1,ROW(D1)),17),\"\")","v":"77:17:0000000:______"},{"$f":"IFERROR(INDEX('Свод по объектам'!$C$2:$AA$20,_xlfn.AGGREGATE(15,6,ROW('Свод по объектам'!$B$2:$B$20)/('Свод по объектам'!$C$2:$C$20=$D$2)-1,ROW(E1)),13),\"\")","v":"Сети водоснабжения"},{"$f":"IFERROR(INDEX('Свод по объектам'!$C$2:$AA$20,_xlfn.AGGREGATE(15,6,ROW('Свод по объектам'!$B$2:$B$20)/('Свод по объектам'!$C$2:$C$20=$D$2)-1,ROW(F1)),15),\"\")","v":2401},{"$f":"IFERROR(INDEX('Свод по объектам'!$C$2:$AA$20,_xlfn.AGGREGATE(15,6,ROW('Свод по объектам'!$B$2:$B$20)/('Свод по объектам'!$C$2:$C$20=$D$2)-1,ROW(G1)),16),\"\")","v":"п.м."}]
[null,{"$f":"IFERROR(INDEX('Свод по объектам'!$C$2:$AA$20,_xlfn.AGGREGATE(15,6,ROW('Свод по объектам'!$B$2:$B$20)/('Свод по объектам'!$C$2:$C$20=$D$2)-1,ROW(A2)),7),\"\")","v":"12345678901/18 от 09.06.2018"},{"$f":"IFERROR(INDEX('Свод по объектам'!$C$2:$AA$20,_xlfn.AGGREGATE(15,6,ROW('Свод по объектам'!$B$2:$B$20)/('Свод по объектам'!$C$2:$C$20=$D$2)-1,ROW(B2)),9),\"\")","v":"ООО \"Ромашка\""},{"$f":"IFERROR(INDEX('Свод по объектам'!$C$2:$AA$20,_xlfn.AGGREGATE(15,6,ROW('Свод по объектам'!$B$2:$B$20)/('Свод по объектам'!$C$2:$C$20=$D$2)-1,ROW(C2)),11),\"\")","v":"09.06.2018 - 08.05.2019*"},{"$f":"IFERROR(INDEX('Свод по объектам'!$C$2:$AA$20,_xlfn.AGGREGATE(15,6,ROW('Свод по объектам'!$B$2:$B$20)/('Свод по объектам'!$C$2:$C$20=$D$2)-1,ROW(D2)),17),\"\")","v":"77:18:0000000:______"},{"$f":"IFERROR(INDEX('Свод по объектам'!$C$2:$AA$20,_xlfn.AGGREGATE(15,6,ROW('Свод по объектам'!$B$2:$B$20)/('Свод по объектам'!$C$2:$C$20=$D$2)-1,ROW(E2)),13),\"\")","v":"Сети водоснабжения"},{"$f":"IFERROR(INDEX('Свод по объектам'!$C$2:$AA$20,_xlfn.AGGREGATE(15,6,ROW('Свод по объектам'!$B$2:$B$20)/('Свод по объектам'!$C$2:$C$20=$D$2)-1,ROW(F2)),15),\"\")","v":3500},{"$f":"IFERROR(INDEX('Свод по объектам'!$C$2:$AA$20,_xlfn.AGGREGATE(15,6,ROW('Свод по объектам'!$B$2:$B$20)/('Свод по объектам'!$C$2:$C$20=$D$2)-1,ROW(G2)),16),\"\")","v":"п.м."}]
[null,{"$f":"IFERROR(INDEX('Свод по объектам'!$C$2:$AA$20,_xlfn.AGGREGATE(15,6,ROW('Свод по объектам'!$B$2:$B$20)/('Свод по объектам'!$C$2:$C$20=$D$2)-1,ROW(A3)),7),\"\")","v":"12345678901/2/18 от 10.06.2018"},{"$f":"IFERROR(INDEX('Свод по объектам'!$C$2:$AA$20,_xlfn.AGGREGATE(15,6,ROW('Свод по объектам'!$B$2:$B$20)/('Свод по объектам'!$C$2:$C$20=$D$2)-1,ROW(B3)),9),\"\")","v":"ООО \"Ромашка\""},{"$f":"IFERROR(INDEX('Свод по объектам'!$C$2:$AA$20,_xlfn.AGGREGATE(15,6,ROW('Свод по объектам'!$B$2:$B$20)/('Свод по объектам'!$C$2:$C$20=$D$2)-1,ROW(C3)),11),\"\")","v":"10.06.2018 - 08.05.2019*"},{"$f":"IFERROR(INDEX('Свод по объектам'!$C$2:$AA$20,_xlfn.AGGREGATE(15,6,ROW('Свод по объектам'!$B$2:$B$20)/('Свод по объектам'!$C$2:$C$20=$D$2)-1,ROW(D3)),17),\"\")","v":"77:19:0000000:______"},{"$f":"IFERROR(INDEX('Свод по объектам'!$C$2:$AA$20,_xlfn.AGGREGATE(15,6,ROW('Свод по объектам'!$B$2:$B$20)/('Свод по объектам'!$C$2:$C$20=$D$2)-1,ROW(E3)),13),\"\")","v":"Сети хозяйственно-бытовой канализации "},{"$f":"IFERROR(INDEX('Свод по объектам'!$C$2:$AA$20,_xlfn.AGGREGATE(15,6,ROW('Свод по объектам'!$B$2:$B$20)/('Свод по объектам'!$C$2:$C$20=$D$2)-1,ROW(F3)),15),\"\")","v":3890},{"$f":"IFERROR(INDEX('Свод по объектам'!$C$2:$AA$20,_xlfn.AGGREGATE(15,6,ROW('Свод по объектам'!$B$2:$B$20)/('Свод по объектам'!$C$2:$C$20=$D$2)-1,ROW(G3)),16),\"\")","v":"п.м."}]
[null,{"$f":"IFERROR(INDEX('Свод по объектам'!$C$2:$AA$20,_xlfn.AGGREGATE(15,6,ROW('Свод по объектам'!$B$2:$B$20)/('Свод по объектам'!$C$2:$C$20=$D$2)-1,ROW(A4)),7),\"\")","v":"12345678901/3/18 от 10.06.2018"},{"$f":"IFERROR(INDEX('Свод по объектам'!$C$2:$AA$20,_xlfn.AGGREGATE(15,6,ROW('Свод по объектам'!$B$2:$B$20)/('Свод по объектам'!$C$2:$C$20=$D$2)-1,ROW(B4)),9),\"\")","v":"ООО \"Ромашка\""},{"$f":"IFERROR(INDEX('Свод по объектам'!$C$2:$AA$20,_xlfn.AGGREGATE(15,6,ROW('Свод по объектам'!$B$2:$B$20)/('Свод по объектам'!$C$2:$C$20=$D$2)-1,ROW(C4)),11),\"\")","v":"10.06.2018 - 08.05.2019*"},{"$f":"IFERROR(INDEX('Свод по объектам'!$C$2:$AA$20,_xlfn.AGGREGATE(15,6,ROW('Свод по объектам'!$B$2:$B$20)/('Свод по объектам'!$C$2:$C$20=$D$2)-1,ROW(D4)),17),\"\")","v":"77:20:0000000:______"},{"$f":"IFERROR(INDEX('Свод по объектам'!$C$2:$AA$20,_xlfn.AGGREGATE(15,6,ROW('Свод по объектам'!$B$2:$B$20)/('Свод по объектам'!$C$2:$C$20=$D$2)-1,ROW(E4)),13),\"\")","v":"Сети водоснабжения"},{"$f":"IFERROR(INDEX('Свод по объектам'!$C$2:$AA$20,_xlfn.AGGREGATE(15,6,ROW('Свод по объектам'!$B$2:$B$20)/('Свод по объектам'!$C$2:$C$20=$D$2)-1,ROW(F4)),15),\"\")","v":4250},{"$f":"IFERROR(INDEX('Свод по объектам'!$C$2:$AA$20,_xlfn.AGGREGATE(15,6,ROW('Свод по объектам'!$B$2:$B$20)/('Свод по объектам'!$C$2:$C$20=$D$2)-1,ROW(G4)),16),\"\")","v":"п.м."}]
[null,{"$f":"IFERROR(INDEX('Свод по объектам'!$C$2:$AA$20,_xlfn.AGGREGATE(15,6,ROW('Свод по объектам'!$B$2:$B$20)/('Свод по объектам'!$C$2:$C$20=$D$2)-1,ROW(A5)),7),\"\")","v":"12345678901/4/18 от 10.06.2018"},{"$f":"IFERROR(INDEX('Свод по объектам'!$C$2:$AA$20,_xlfn.AGGREGATE(15,6,ROW('Свод по объектам'!$B$2:$B$20)/('Свод по объектам'!$C$2:$C$20=$D$2)-1,ROW(B5)),9),\"\")","v":"ООО \"Ромашка\""},{"$f":"IFERROR(INDEX('Свод по объектам'!$C$2:$AA$20,_xlfn.AGGREGATE(15,6,ROW('Свод по объектам'!$B$2:$B$20)/('Свод по объектам'!$C$2:$C$20=$D$2)-1,ROW(C5)),11),\"\")","v":"10.06.2018 - 08.05.2019*"},{"$f":"IFERROR(INDEX('Свод по объектам'!$C$2:$AA$20,_xlfn.AGGREGATE(15,6,ROW('Свод по объектам'!$B$2:$B$20)/('Свод по объектам'!$C$2:$C$20=$D$2)-1,ROW(D5)),17),\"\")","v":"77:21:0000000:______"},{"$f":"IFERROR(INDEX('Свод по объектам'!$C$2:$AA$20,_xlfn.AGGREGATE(15,6,ROW('Свод по объектам'!$B$2:$B$20)/('Свод по объектам'!$C$2:$C$20=$D$2)-1,ROW(E5)),13),\"\")","v":"Сети хозяйственно-бытовой канализации "},{"$f":"IFERROR(INDEX('Свод по объектам'!$C$2:$AA$20,_xlfn.AGGREGATE(15,6,ROW('Свод по объектам'!$B$2:$B$20)/('Свод по объектам'!$C$2:$C$20=$D$2)-1,ROW(F5)),15),\"\")","v":1280},{"$f":"IFERROR(INDEX('Свод по объектам'!$C$2:$AA$20,_xlfn.AGGREGATE(15,6,ROW('Свод по объектам'!$B$2:$B$20)/('Свод по объектам'!$C$2:$C$20=$D$2)-1,ROW(G5)),16),\"\")","v":"п.м."}]